bitfinex-derivatives/quotes_SOLF0:USTF0_20250730
["timestamp","ask_amount","ask_price","bid_price","bid_amount"]
[1753878304216,7.0,177.99,177.98,3.16]
[1753878305114,7.0,177.99,177.98,8.7789]
[1753878307325,7.0,177.99,177.98,3.16]
[1753878308426,7.0,177.99,177.97,2.81574122]
[1753878308626,7.0,177.99,177.98,3.16]
[1753878308827,12.6188,177.99,177.98,3.16]
[1753878309622,7.0,177.99,177.98,3.16]
[1753878310123,15.7085,177.99,177.98,3.16]
[1753878310521,12.6185,177.99,177.98,3.16]
[1753878310823,7.0,177.99,177.98,3.16]
[1753878311224,12.6185,177.99,177.98,3.16]
[1753878311727,7.0,177.99,177.98,3.16]
[1753878312026,7.0,177.99,177.98,8.7789]
[1753878312227,7.0,177.99,177.98,3.16]
[1753878313225,7.0,177.99,177.98,8.7789]
[1753878315623,4.65029,178.05,178.04,3.16]
[1753878315828,7.74029,178.05,178.03,5.97574122]
[1753878316125,4.65029,178.05,178.04,8.777]
[1753878318031,3.09,178.09,178.08,3.16]
[1753878318431,3.09,178.08,178.07,5.97574122]
[1753878318625,3.09,178.08,178.07,2.81574122]
[1753878318821,3.09,178.08,178.07,3.16]
[1753878319030,3.09,178.08,178.07,8.776]
[1753878319228,3.09,178.09,178.08,3.16]
[1753878319432,5.6159,178.08,178.05,115.53574122]
[1753878319631,7.0,178.1,178.07,2.81574122]
[1753878319821,10.09,178.1,178.08,3.16]
[1753878320026,10.09,178.1,178.09,3.16]
[1753878320527,7.0,178.1,178.09,3.16]
[1753878320831,3.09,178.09,178.08,3.16]
[1753878321132,3.09,178.09,178.08,8.7757]
[1753878321431,7.0,178.1,178.08,5.6157]
[1753878321628,7.0,178.1,178.09,3.29]
[1753878321836,7.0,178.1,178.09,11.72114122]
[1753878322127,7.0,178.1,178.09,3.29]
[1753878322333,10.04,178.1,178.09,3.29]
[1753878322633,7.0,178.1,178.08,11.72134122]
[1753878322827,3.04,178.09,178.08,3.29]
[1753878323027,3.04,178.09,178.07,109.36]
[1753878323233,3.04,178.09,178.06,115.46574122]
[1753878323422,3.04,178.08,178.07,3.29]
[1753878324135,3.04,178.07,178.06,115.46574122]
[1753878324433,3.04,178.04,178.02,2.81574122]
[1753878324630,3.04,178.09,178.02,112.17574122]
[1753878324935,3.04,178.06,178.05,3.29]
[1753878325135,10.04,178.1,178.05,3.29]
[1753878325430,3.04,178.08,178.02,109.36]
[1753878325627,3.04,178.07,178.06,2.81574122]
[1753878325823,5.616,178.07,178.04,6.10574122]
[1753878326028,3.04,178.06,178.04,2.81574122]
[1753878326222,7.0,178.1,178.03,112.15574122]
[1753878326427,3.04,178.04,178.03,121.06274122]
[1753878326830,3.04,178.04,178.03,6.10574122]
[1753878327027,7.0,178.1,178.03,115.44574122]
[1753878327234,3.04,178.09,178.05,2.81574122]
[1753878327530,3.04,178.09,178.05,6.10574122]
[1753878327730,3.04,178.09,178.05,2.81574122]
[1753878327925,3.04,178.09,178.08,3.29]
[1753878328127,3.04,178.09,178.08,8.9057]
[1753878328326,7.0,178.1,178.07,2.81574122]
[1753878328536,7.0,178.1,178.09,3.29]
[1753878329130,7.0,178.1,178.09,6.10574122]
[1753878329334,10.04,178.1,178.09,6.10574122]
[1753878329534,7.0,178.1,178.09,6.10574122]
[1753878329837,7.0,178.1,178.09,11.72114122]
[1753878330630,7.0,178.1,178.09,6.10574122]
[1753878330831,10.04,178.1,178.09,2.81574122]
[1753878331036,7.0,178.1,178.09,6.10574122]
[1753878331631,7.0,178.1,178.09,11.72114122]
[1753878332235,7.0,178.1,178.09,121.06114122]
[1753878333333,7.0,178.1,178.07,5.6157]
[1753878333536,3.04,178.09,178.08,2.81574122]
[1753878333840,8.6554,178.09,178.08,2.81574122]
[1753878334036,3.04,178.08,178.07,112.13574122]
[1753878334242,3.04,178.08,178.07,115.42574122]
[1753878334736,10.04,178.1,178.08,3.29]
[1753878334938,7.0,178.1,178.05,2.81574122]
[1753878335139,7.0,178.1,178.06,109.32]
[1753878335637,5.6156,178.09,178.07,109.32]
[1753878335842,3.04,178.07,178.05,6.10574122]
[1753878336044,5.6166,178.05,178.02,383.1175]
[1753878336240,3.04,178.08,178.02,377.5]
[1753878336439,3.04,178.06,178.03,109.32]
[1753878336632,2.81574122,178.09,178.03,109.32]
[1753878336834,3.04,178.07,178.03,109.32]
[1753878337147,2.81574122,178.09,178.02,377.5]
[1753878337339,2.81574122,178.07,178.02,486.82]
[1753878337545,3.04,178.06,178.02,486.82]
[1753878337738,3.04,178.04,178.02,486.82]
[1753878338145,3.04,178.04,178.02,377.5]
[1753878338442,3.04,178.06,177.99,2.81574122]
[1753878338642,3.04,178.04,177.99,109.32]
[1753878338844,7.39949821,178.03,177.99,109.32]
[1753878339048,3.04,178.0,177.99,109.32]
[1753878340141,3.04,177.99,177.98,109.32]
[1753878340840,5.6178,178.02,177.98,112.61]
[1753878341038,7.62836374,178.01,177.98,109.32]
[1753878341242,3.04,178.07,178.04,3.29]
[1753878341440,3.04,178.05,178.03,3.29]
[1753878341645,7.62932562,178.04,178.02,109.32]
[1753878341848,5.6165,178.06,178.03,3.29]
[1753878342045,3.04,178.04,178.03,3.29]
[1753878342257,3.04,178.06,178.03,3.29]
[1753878342556,4.59107804,178.05,178.04,3.29]
[1753878342755,3.04,178.09,178.04,3.29]
[1753878342945,3.04,178.07,178.05,3.29]
[1753878343147,5.6154,178.09,178.06,109.32]
[1753878343349,4.59209249,178.08,178.06,109.32]
[1753878343551,7.0,178.1,178.06,109.32]
[1753878343850,3.04,178.08,178.06,118.2263]
[1753878344052,7.0,178.1,178.06,118.2263]
[1753878344053,7.0,178.1,178.07,3.29]
[1753878344256,4.59241209,178.09,178.08,3.29]
[1753878344448,4.59241209,178.09,178.08,8.9057]
[1753878344755,3.04,178.08,178.06,112.61]
[1753878344955,7.0,178.1,178.07,109.32]
[1753878345253,4.59482069,178.09,178.07,112.61]
[1753878345560,7.0,178.1,178.07,109.32]
[1753878345758,4.59721391,178.09,178.08,3.29]
[1753878345959,7.0,178.1,178.07,112.13574122]
[1753878346164,7.0,178.1,178.09,3.29]
[1753878346961,7.0,178.1,178.09,8.9054]
[1753878347153,7.0,178.1,178.09,3.29]
[1753878347358,7.0,178.1,178.08,3.29]
[1753878347557,7.0,178.1,178.07,112.13574122]
[1753878347558,7.0,178.1,178.09,3.29]
[1753878348165,7.0,178.1,178.09,8.9054]
[1753878348355,3.04,178.09,178.07,112.13574122]
[1753878348560,3.04,178.08,178.07,115.42574122]
[1753878348954,3.04,178.08,178.07,11.72174122]
[1753878349355,3.04,178.08,178.05,2.81574122]
[1753878349559,3.04,178.07,178.04,8.43244122]
[1753878349767,3.04,178.07,178.06,109.3]
[1753878349966,8.6561,178.07,178.06,109.3]
[1753878350763,3.04,178.09,178.02,2.81574122]
[1753878350959,3.04,178.07,178.03,109.28]
[1753878351464,3.04,178.09,178.03,109.28]
[1753878351656,3.03,178.07,178.02,3.0]
[1753878351856,3.03,178.01,178.0,5.81574122]
[1753878352066,3.03,178.01,178.0,112.28]
[1753878352367,3.03,178.07,178.0,112.09574122]
[1753878352570,7.63750852,178.06,178.0,112.09574122]
[1753878352768,3.03,178.06,178.04,3.0]
[1753878353068,3.03,178.06,178.05,3.0]
[1753878353269,3.03,178.05,178.03,3.0]
[1753878353659,3.03,178.05,178.04,3.0]
[1753878354258,2.81574122,178.06,178.02,109.28]
[1753878354466,3.03,178.05,178.02,109.28]
[1753878354966,8.6473,178.03,178.02,109.28]
[1753878355758,5.618,178.01,177.98,2.81574122]
[1753878355970,3.03,178.0,177.98,115.09574122]
[1753878356264,3.03,178.0,177.99,3.0]
[1753878356465,8.6482,178.0,177.97,5.6189]
[1753878356668,3.03,177.99,177.97,112.28]
[1753878356873,2.81574122,178.04,177.98,3.0]
[1753878357174,3.03,178.0,177.99,3.0]
[1753878357876,3.03,178.03,177.97,112.28]
[1753878358269,3.03,178.03,177.98,5.6188]
[1753878358569,3.03,178.03,177.99,3.0]
[1753878358965,3.03,178.01,177.98,5.6188]
[1753878359169,3.03,178.01,178.0,3.0]
[1753878359663,8.6475,178.03,178.0,3.0]
[1753878359868,3.03,178.02,178.0,3.0]
[1753878360068,3.03,178.01,178.0,3.0]
[1753878360475,5.6175,178.03,178.01,3.0]
[1753878360771,3.03,178.02,178.0,3.0]
[1753878360966,3.03,178.02,178.01,3.0]
[1753878361471,2.81574122,178.06,177.99,3.0]
[1753878361672,8.88010985,178.05,177.99,3.0]
[1753878361973,8.6467,178.05,177.99,3.0]
[1753878362175,3.03,178.05,177.99,3.0]
[1753878362369,3.03,178.05,178.01,8.6179]
[1753878362671,3.03,178.04,178.02,3.0]
[1753878362874,2.81574122,178.07,178.02,3.0]
[1753878363172,5.84574122,178.05,177.99,3.0]
[1753878363467,3.03,178.04,177.99,3.0]
[1753878363871,3.03,178.03,177.99,3.0]
[1753878364068,3.03,178.03,178.0,5.618]
[1753878364268,3.03,178.03,178.02,3.0]
[1753878364667,3.03,178.04,178.03,3.0]
[1753878365066,3.03,178.04,178.0,5.6181]
[1753878365367,2.81574122,178.07,178.02,3.0]
[1753878365368,3.03,178.06,178.02,3.0]
[1753878365870,8.6467,178.05,177.99,3.0]
[1753878366070,3.03,178.05,177.99,3.0]
[1753878366270,8.6473,178.03,178.01,3.0]
[1753878366672,3.03,178.03,177.99,3.0]
[1753878366872,3.03,178.03,178.0,8.43374122]
[1753878367072,3.03,178.03,178.02,3.0]
[1753878367670,5.6167,178.05,178.0,112.07574122]
[1753878367876,3.03,178.06,178.05,3.0]
[1753878368374,8.6466,178.06,178.05,3.0]
[1753878368872,7.0,178.1,178.04,2.81574122]
[1753878369065,3.03,178.09,178.05,3.0]
[1753878369268,3.03,178.09,178.08,3.0]
[1753878369664,7.0,178.1,178.09,3.0]
[1753878370874,7.0,178.1,178.09,8.6154]
[1753878371064,7.0,178.1,178.09,3.0]
[1753878372370,7.0,178.1,178.06,109.24]
[1753878372371,7.0,178.1,178.06,5.81574122]
[1753878372571,3.03,178.08,178.06,2.81574122]
[1753878372773,3.03,178.06,178.05,112.01574122]
[1753878372970,3.03,178.06,178.05,5.81574122]
[1753878373271,7.0,178.1,178.03,3.0]
[1753878373272,9.81574122,178.1,178.03,3.0]
[1753878373477,3.03,178.03,178.02,112.2]
[1753878373869,3.03,178.02,178.0,109.2]
[1753878374076,3.03,178.01,178.0,109.2]
[1753878374273,2.81574122,178.08,178.0,112.2]
[1753878374574,3.03,178.01,178.0,112.2]
[1753878375171,3.03,178.03,178.0,112.2]
[1753878375384,3.03,178.03,178.01,3.0]
[1753878375577,3.03,178.06,178.03,3.0]
[1753878375773,3.03,178.08,178.05,3.0]
[1753878375978,8.6458,178.08,178.06,3.0]
[1753878376478,8.6458,178.08,178.04,8.43244122]
[1753878376676,5.6163,178.07,178.04,2.81574122]
[1753878376875,3.03,178.09,178.02,111.99574122]
[1753878377073,3.03,178.09,178.03,3.0]
[1753878377272,3.03,178.09,178.03,8.6171]
[1753878377273,5.6162,178.07,178.03,8.6171]
[1753878377573,9.81574122,178.1,178.03,8.6171]
[1753878377574,9.81574122,178.1,178.03,5.81574122]
[1753878377770,3.03,178.09,178.03,2.81574122]
[1753878377970,7.0,178.1,178.05,5.81574122]
[1753878378175,3.03,178.08,178.01,2.81574122]
[1753878378377,5.6168,178.05,178.01,8.6177]
[1753878378577,3.03,178.04,178.02,3.0]
[1753878378877,5.6165,178.06,178.02,8.6174]
[1753878379081,3.03,178.08,178.03,3.0]
[1753878379382,2.81574122,178.09,178.04,3.0]
[1753878379572,3.03,178.05,178.04,3.0]
[1753878380275,5.6166,178.05,178.02,11.43324122]
[1753878380485,3.03,178.04,178.03,3.0]
[1753878381475,3.03,178.04,178.03,8.6173]
[1753878381671,3.22,178.06,178.03,3.14]
[1753878381875,3.22,178.07,178.04,3.14]
[1753878382079,3.22,178.07,178.02,111.97574122]
[1753878382281,3.22,178.06,178.05,3.14]
[1753878382782,3.22,178.07,178.05,3.14]
[1753878383177,7.0,178.1,178.06,3.14]
[1753878383178,8.8357,178.08,178.06,3.14]
[1753878383383,5.6157,178.08,178.06,3.14]
[1753878383573,3.22,178.07,178.04,3.14]
[1753878383777,3.22,178.06,178.05,3.14]
[1753878385277,8.8363,178.06,178.05,3.14]
[1753878385473,3.22,178.04,178.03,114.7572]
[1753878385678,3.22,178.04,178.03,117.8972]
[1753878385880,3.22,178.05,178.03,112.28]
[1753878386082,3.22,178.04,178.03,112.28]
[1753878386586,3.22,178.04,178.03,117.8973]
[1753878386888,3.22,178.04,178.03,112.28]
[1753878387185,3.22,178.09,178.03,112.28]
[1753878387586,3.22,178.09,178.03,117.8972]
[1753878387880,3.22,178.06,178.04,3.14]
[1753878388084,3.22,178.06,178.05,3.14]
[1753878388285,3.22,178.05,178.04,3.14]
[1753878388683,3.22,178.09,178.06,3.14]
[1753878388882,3.22,178.05,178.04,111.93574122]
[1753878389082,7.0,178.09,178.04,114.737]
[1753878389284,3.22,178.06,178.05,3.14]
[1753878389681,3.22,178.08,178.07,3.14]
[1753878390990,8.8357,178.08,178.07,3.14]
[1753878391287,3.22,178.06,178.05,112.24]
[1753878391695,3.22,178.06,178.05,3.14]
[1753878391881,3.22,178.06,178.05,112.24]
[1753878392081,3.22,178.07,178.06,3.14]
[1753878392587,3.22,178.07,178.06,8.7563]
[1753878392785,3.22,178.07,178.06,3.14]
[1753878392979,3.22,178.07,178.06,112.24]
[1753878393177,3.22,178.07,178.06,3.14]
[1753878393384,3.22,178.07,178.06,112.22]
[1753878394290,3.22,178.07,178.06,117.8363]
[1753878394483,7.0,178.08,178.06,117.8363]
[1753878394484,7.0,178.08,178.07,3.14]
[1753878394884,10.22,178.08,178.07,3.14]
[1753878395086,10.22,178.08,178.06,114.6962]
[1753878395287,3.22,178.07,178.06,112.22]
[1753878395687,7.0,178.08,178.07,3.14]
[1753878396195,7.0,178.08,178.07,8.756]
[1753878396382,7.0,178.08,178.07,3.14]
[1753878396982,10.22,178.08,178.07,3.14]
[1753878397285,3.22,178.07,178.06,111.89574122]
[1753878397486,3.22,178.07,178.06,120.65194122]
[1753878398092,3.22,178.07,178.06,117.8362]
[1753878398792,7.0,178.08,178.07,5.616]
[1753878398992,10.22,178.08,178.07,8.756]
[1753878399193,10.22,178.08,178.07,3.14]
[1753878399791,10.22,178.08,178.07,5.95574122]
[1753878399792,14.0,178.08,178.07,5.95574122]
[1753878401094,14.0,178.08,178.07,11.57174122]
[1753878403195,10.22,178.08,178.07,114.616]
[1753878403790,10.22,178.08,178.07,5.616]
[1753878403986,10.22,178.08,178.07,108.98]
[1753878404192,7.0,178.08,178.07,112.12]
[1753878404586,7.0,178.08,178.07,117.736]
[1753878404800,3.22,178.14,178.08,3.14]
[1753878405091,3.22,178.15,178.1,8.43064122]
[1753878405296,3.22,178.13,178.11,108.98]
[1753878405601,3.22,178.12,178.11,108.98]
[1753878405990,3.22,178.15,178.1,2.81574122]
[1753878406196,0.29387,178.16,178.11,108.96]
[1753878406197,3.22,178.13,178.11,108.96]
[1753878406390,3.22,178.13,178.1,8.43074122]
[1753878406594,8.8342,178.13,178.11,108.96]
[1753878406991,3.22,178.12,178.11,108.96]
[1753878407688,0.29387,178.16,178.11,108.96]
[1753878407895,3.22,178.14,178.12,2.81574122]
[1753878408295,5.6143,178.13,178.11,108.96]
[1753878408601,3.22,178.12,178.11,108.96]
[1753878408797,3.22,178.12,178.11,112.1]
[1753878408993,3.22,178.15,178.11,112.1]
[1753878409798,3.22,178.13,178.11,117.7146]
[1753878409999,3.22,178.12,178.11,117.7146]
[1753878411300,3.22,178.12,178.11,112.1]
[1753878411803,3.22,178.12,178.11,117.7147]
[1753878412398,10.22,178.12,178.11,117.7147]
[1753878414097,10.22,178.12,178.11,112.1]
[1753878414309,10.22,178.12,178.03,11.2344]
[1753878414310,3.28,178.11,178.03,3.07]
[1753878414498,3.28,178.11,178.06,5.88574122]
[1753878414804,5.6151,178.1,178.07,108.88]
[1753878415005,3.28,178.08,178.07,108.88]
[1753878415706,3.28,178.08,178.07,117.5659]
[1753878415902,3.28,178.11,178.08,3.07]
[1753878416100,3.28,178.1,178.08,2.81574122]
[1753878416301,3.28,178.11,178.08,3.07]
[1753878416502,8.8952,178.1,178.07,111.95]
[1753878416799,3.28,178.09,178.08,5.88574122]
[1753878417204,3.28,178.11,178.09,3.07]
[1753878417409,7.0,178.12,178.1,111.67574122]
[1753878417701,10.28,178.12,178.11,3.07]
[1753878417898,10.28,178.12,178.11,8.6846]
[1753878418094,10.28,178.12,178.11,3.07]
[1753878418299,3.28,178.11,178.1,111.67574122]
[1753878418805,3.28,178.11,178.1,108.86]
[1753878419595,8.8947,178.11,178.1,108.86]
[1753878419798,3.28,178.11,178.1,3.07]
[1753878420401,3.28,178.11,178.09,108.84]
[1753878420606,3.28,178.1,178.09,3.07]
[1753878420800,3.28,178.1,178.09,111.89]
[1753878421206,3.28,178.09,178.02,2.81574122]
[1753878421506,3.28,178.09,178.03,108.82]
[1753878421805,3.28,178.04,178.03,111.89]
[1753878422007,2.81574122,178.1,178.03,111.89]
[1753878422203,8.87425211,178.09,178.03,111.89]
[1753878422405,8.87406019,178.08,178.03,108.82]
[1753878422702,3.28,178.07,178.01,5.88574122]
[1753878422902,3.28,178.05,178.02,117.5075]
[1753878423109,3.28,178.04,178.03,3.07]
[1753878423310,3.28,178.06,178.04,3.07]
[1753878423505,2.81574122,178.11,178.02,108.82]
[1753878423506,3.28,178.11,178.05,2.81574122]
[1753878423697,3.28,178.09,178.07,3.07]
[1753878423899,7.0,178.12,178.07,3.07]
[1753878424102,3.28,178.1,178.06,108.82]
[1753878424310,3.28,178.07,178.06,111.89]
[1753878424518,5.6151,178.1,178.06,114.4161]
[1753878424808,3.28,178.1,178.06,108.8]
[1753878425007,7.0,178.12,178.05,2.81574122]
[1753878425305,3.28,178.1,178.06,2.81574122]
[1753878425504,3.28,178.11,178.07,3.07]
[1753878425705,5.6156,178.08,178.07,3.07]
[1753878426011,3.28,178.1,178.04,108.8]
[1753878426211,5.6164,178.06,178.04,108.8]
[1753878426402,3.28,178.04,178.02,111.61574122]
[1753878426603,3.28,178.03,178.02,114.68574122]
[1753878427102,8.8968,178.05,178.02,111.61574122]
[1753878427303,8.8968,178.05,178.03,3.07]
[1753878427698,8.8969,178.04,178.03,3.07]
[1753878427909,8.8969,178.04,178.02,111.61574122]
[1753878428203,2.81574122,178.09,178.02,5.88574122]
[1753878428407,3.28,178.07,178.02,111.85]
[1753878428707,3.28,178.07,178.03,3.07]
[1753878429008,2.81574122,178.09,178.02,108.78]
[1753878429009,8.8968,178.05,178.04,3.07]
[1753878429210,3.28,178.04,178.02,111.85]
[1753878429508,8.897,178.04,178.03,3.07]
[1753878429804,3.28,178.04,178.0,3.07]
[1753878430008,3.28,178.06,178.0,111.83]
[1753878430209,3.28,178.06,178.0,3.07]
[1753878430608,3.28,178.06,178.0,111.83]
[1753878430909,3.28,178.02,178.0,111.83]
[1753878431206,3.28,178.02,178.01,3.07]
[1753878431402,8.8975,178.02,178.01,3.07]
[1753878432119,2.81574122,178.03,177.96,377.52]
[1753878432301,7.91843201,178.02,177.98,3.07]
[1753878432506,3.28,178.01,177.98,3.07]
[1753878432809,8.8985,177.99,177.98,3.07]
[1753878434001,8.8985,177.99,177.96,108.74]
[1753878434206,3.28,178.0,177.94,3.07]
[1753878434405,3.28,177.98,177.93,108.74]
[1753878434712,8.8996,177.96,177.95,3.07]
[1753878435310,5.62,177.94,177.93,111.81]
[1753878435710,3.28,177.95,177.93,108.74]
[1753878436009,8.9,177.94,177.93,108.74]
[1753878436207,3.28,177.98,177.93,111.81]
[1753878436605,8.9,177.94,177.93,111.81]
[1753878437010,8.9,177.94,177.93,3.07]
[1753878437211,8.8998,177.95,177.92,108.72]
[1753878437410,3.28,177.97,177.93,5.88574122]
[1753878437609,3.28,177.98,177.94,3.07]
[1753878437815,8.8993,177.97,177.95,3.07]
[1753878438117,8.8993,177.97,177.96,3.07]
[1753878439115,8.8994,177.96,177.95,3.07]
[1753878439506,8.8992,177.97,177.96,3.07]
[1753878439913,4.71869955,178.07,177.97,8.6889]
[1753878439914,3.28,178.03,177.97,8.6889]
[1753878440113,3.28,178.04,177.97,3.07]
[1753878440313,2.81574122,178.03,177.97,3.07]
[1753878440508,3.28,178.02,177.96,5.6193]
[1753878440715,3.28,178.01,177.97,3.07]
[1753878440909,8.8971,178.04,177.99,5.88574122]
[1753878441115,3.28,178.06,177.99,111.51574122]
[1753878441415,3.28,178.04,177.99,111.77]
[1753878441616,8.8681,178.0,177.99,108.7]
[1753878442314,5.6188,177.98,177.97,3.04]
[1753878442514,8.8688,177.98,177.95,108.7]
[1753878442712,3.25,177.98,177.96,3.04]
[1753878442919,8.8691,177.97,177.96,3.04]
[1753878443117,3.25,177.99,177.96,3.04]
[1753878443420,3.25,178.01,177.99,3.04]
[1753878443608,3.25,178.04,178.01,3.04]
[1753878443815,3.25,178.03,178.02,3.04]
[1753878444117,5.6175,178.03,178.02,3.04]
[1753878444619,5.6181,178.01,177.98,2.81574122]
[1753878444816,8.8681,178.01,178.0,3.04]
[1753878445018,3.25,178.0,177.99,3.04]
[1753878445216,3.25,178.03,177.95,108.68]
[1753878445415,3.25,178.03,177.96,3.04]
[1753878445616,5.6184,178.0,177.96,8.6594]
[1753878445817,3.25,178.0,177.98,3.04]
[1753878446123,3.25,178.0,177.99,3.04]
[1753878446320,3.25,178.08,177.99,3.04]
[1753878446522,3.25,178.04,177.99,3.04]
[1753878447015,3.25,178.0,177.98,5.6187]
[1753878447220,3.25,178.04,177.99,3.04]
[1753878447424,5.6178,178.02,177.98,3.04]
[1753878447619,3.25,178.01,177.99,3.04]
[1753878448123,8.8678,178.01,177.99,3.04]
[1753878448717,8.8678,178.01,177.98,5.6187]
[1753878449222,3.25,178.01,178.0,3.04]
[1753878450523,3.25,178.06,178.0,3.04]
[1753878450728,3.25,178.04,177.98,3.04]
[1753878450918,11.2309,178.09,178.01,2.81574122]
[1753878450919,2.81574122,178.09,178.01,2.81574122]
[1753878451121,5.6172,178.03,178.02,3.04]
[1753878452324,8.8672,178.03,178.02,3.04]
[1753878452527,5.6172,178.03,178.02,3.04]
[1753878453428,8.8681,178.01,177.99,2.81574122]
[1753878453630,5.6181,178.01,177.99,2.81574122]
[1753878453930,3.25,178.04,178.0,3.04]
[1753878454129,3.25,178.03,178.0,3.04]
[1753878454327,3.25,178.03,178.01,3.04]
[1753878454525,3.25,178.03,178.02,3.04]
[1753878455434,8.8672,178.03,178.02,3.04]
[1753878455636,3.25,178.03,178.02,3.04]
[1753878456737,8.8672,178.03,178.02,3.04]
[1753878457134,3.25,178.03,177.99,2.81574122]
[1753878457438,2.81574122,178.06,177.97,2.81574122]
[1753878457635,2.81574122,178.06,177.98,3.04]
[1753878458035,3.25,178.05,177.99,2.81574122]
[1753878458233,5.6177,178.02,177.99,2.81574122]
[1753878458433,3.25,178.05,178.01,3.04]
[1753878458633,3.25,178.05,177.99,5.85574122]
[1753878458829,5.618,178.01,177.99,5.85574122]
[1753878459030,3.25,178.0,177.99,5.85574122]
[1753878459339,3.25,178.0,177.99,3.04]
[1753878460734,5.6176,178.02,177.98,2.81574122]
[1753878460938,3.25,178.05,177.99,3.04]
[1753878461434,8.8675,178.02,178.0,3.04]
[1753878461637,8.8675,178.02,177.98,2.81574122]
[1753878461638,8.8675,178.02,178.01,3.04]
[1753878462240,2.81574122,178.06,178.02,3.04]
[1753878462241,8.8673,178.03,178.02,3.04]
[1753878463544,3.25,178.01,178.0,3.04]
[1753878464537,2.81574122,178.06,177.98,5.6185]
[1753878464538,2.81574122,178.07,178.01,3.04]
[1753878464843,2.81574122,178.03,177.99,3.04]
[1753878465044,2.81574122,178.03,177.96,2.81574122]
[1753878465045,2.81574122,178.03,177.97,3.04]
[1753878465640,5.6188,177.98,177.97,3.04]
[1753878466647,8.8688,177.98,177.97,3.04]
[1753878467049,5.6192,177.97,177.93,5.6202]
[1753878467347,2.81574122,177.99,177.93,3.04]
[1753878467539,3.25,177.93,177.91,3.04]
[1753878467949,3.25,177.93,177.92,3.04]
[1753878468246,2.81574122,177.95,177.92,3.04]
[1753878468446,3.25,177.94,177.92,3.04]
[1753878468648,8.8706,177.93,177.92,3.04]
[1753878468844,3.25,177.93,177.87,3.04]
[1753878469043,3.25,177.93,177.88,5.6219]
[1753878469044,5.6208,177.92,177.88,5.6219]
[1753878469244,8.8708,177.92,177.89,3.04]
[1753878469446,8.8708,177.92,177.88,5.6219]
[1753878469447,8.8708,177.92,177.9,3.04]
[1753878469850,8.8708,177.92,177.88,5.6219]
[1753878470048,8.8708,177.92,177.91,3.04]
[1753878470349,3.25,177.92,177.88,3.04]
[1753878470543,2.81574122,177.91,177.88,3.04]